[Event "African-ch Open 2019"]
[Site "Hammamet"]
[Date "2019.07.13"]
[Round "5.4"]
[White "Arab, Adlane"]
[Black "Hbacha, Achraf"]
[Result "1-0"]
[ECO "A90"]
[WhiteElo "2479"]
[BlackElo "2249"]
[Annotator "ChessBase"]
[PlyCount "155"]
[EventDate "2019.07.09"]
[EventType "swiss"]
[EventCountry "TUN"]
[SourceTitle "playchess.com"]
[Source "ChessBase"]
[SourceQuality "1"]
[TimeControl "5400+30"]

1. d4 {[%emt 0:00:00]} d5 {[%emt 0:03:58]} 2. c4 {[%emt 0:00:00]} e6 {[%emt 0:00:17]} 3. Nf3 {[%emt 0:00:00]} c6 {[%emt 0:02:01]} 4. g3 {[%emt 0:00:41]} f5 {[%emt 0:01:06]} 5. Bg2 {[%emt 0:00:08]} Nf6 {[%emt 0:00:11]} 6. O-O {[%emt 0:00:16]} Bd6 {[%emt 0:03:55]} 7. b3 {[%emt 0:00:11]} Qe7 {[%emt 0:00:54]} 8. Bb2 {[%emt 0:00:09]} Nbd7 {[%emt 0:01:44]} 9. Qc1 {[%emt 0:03:36]} O-O {[%emt 0:09:38]} 10. Ba3 {[%emt 0:00:22]} e5 {[%emt 0:00:47]} 11. dxe5 {[%emt 0:10:58]} Nxe5 {[%emt 0:00:21]} 12. Nxe5 {[%emt 0:00:42]} Qxe5 {[%emt 0:00:09]} 13. Bxd6 {[%emt 0:00:05]} Qxd6 {[%emt 0:00:03]} 14. cxd5 {[%emt 0:03:45]} Nxd5 {[%emt 0:01:03]} 15. e3 {[%emt 0:05:17]} Be6 {[%emt 0:07:49]} 16. Nd2 {[%emt 0:05:52]} Rad8 {[%emt 0:06:59]} 17. Rd1 {[%emt 0:02:33]} Rf7 {[%emt 0:12:04]} 18. Nc4 {[%emt 0:07:45]} Qc7 {[%emt 0:02:04]} 19. Qb2 {[%emt 0:04:02]} Rfd7 {[%emt 0:11:14]} 20. Ne5 {[%emt 0:00:56]} Rd6 {[%emt 0:00:24]} 21. Nf3 {[%emt 0:04:41]} Nf6 {[%emt 0:07:22]} 22. Rxd6 {[%emt 0:02:14]} Qxd6 {[%emt 0:00:15]} 23. Rc1 {[%emt 0:04:21]} Ne4 {[%emt 0:12:37]} 24. Nd4 {[%emt 0:02:19]} Qe5 {[%emt 0:02:07]} 25. Qa3 {[%emt 0:01:07]} Bd5 {[%emt 0:06:37]} 26. b4 {[%emt 0:13:02]} a6 {[%emt 0:02:25]} 27. Qb2 {[%emt 0:00:42]} Ng5 {[%emt 0:01:35]} 28. Bxd5+ {[%emt 0:04:53]} Qxd5 {[%emt 0:00:18]} 29. Qb3 {[%emt 0:00:16]} Qxb3 {[%emt 0:01:22]} 30. Nxb3 {[%emt 0:00:06]} Ne6 {[%emt 0:00:19]} 31. Kf1 {[%emt 0:00:15]} Kf7 {[%emt 0:00:53]} 32. Ke2 {[%emt 0:00:06]} Ke7 {[%emt 0:00:13]} 33. Na5 {[%emt 0:02:23]} Rd7 {[%emt 0:00:22]} 34. Rc4 {[%emt 0:02:19]} Rc7 {[%emt 0:00:57]} 35. Nb3 {[%emt 0:01:20]} Kd6 {[%emt 0:01:53]} 36. Nc5 {[%emt 0:03:16]} b6 {[%emt 0:00:37]} 37. Nxe6 {[%emt 0:01:05]} Kxe6 {[%emt 0:00:05]} 38. Kd3 {[%emt 0:00:10]} Kd5 {[%emt 0:01:05]} 39. Rd4+ {[%emt 0:00:57]} Ke6 {[%emt 0:00:14]} 40. Rd8 {[%emt 0:00:00]} c5 {[%emt 0:00:00]} 41. Ra8 {[%emt 0:00:00]} cxb4 {[%emt 0:00:00]} 42. Rxa6 {[%emt 0:00:00]} Rc6 {[%emt 0:00:00]} 43. h4 {[%emt 0:00:00]} Kd5 {[%emt 0:00:00]} 44. f3 {[%emt 0:00:00]} Rg6 {[%emt 0:00:00]} 45. h5 {[%emt 0:00:00]} Rxg3 {[%emt 0:00:00]} 46. Rxb6 {[%emt 0:00:00]} Kc5 {[%emt 0:00:00]} 47. Rb7 {[%emt 0:00:00]} Rg2 {[%emt 0:03:44]} 48. Ra7 {[%emt 0:00:00]} Rh2 {[%emt 0:02:07]} 49. Ra5+ {[%emt 0:00:00]} Kd6 {[%emt 0:00:38]} 50. Rxf5 {[%emt 0:00:00]} Rxa2 {[%emt 0:00:00]} 51. Rf7 {[%emt 0:00:21]} Rg2 {[%emt 0:00:20]} 52. Rb7 {[%emt 0:01:36]} Kc5 {[%emt 0:00:35]} 53. f4 {[%emt 0:00:24]} Rg3 {[%emt 0:00:36]} 54. h6 {[%emt 0:03:06]} gxh6 {[%emt 0:00:28]} 55. Rxh7 {[%emt 0:00:06]} Rg6 {[%emt 0:00:27]} 56. f5 {[%emt 0:00:49]} Rb6 {[%emt 0:00:30]} 57. e4 {[%emt 0:01:42]} b3 {[%emt 0:00:22]} 58. Rc7+ {[%emt 0:02:02]} Kd6 {[%emt 0:00:09]} 59. Rc1 {[%emt 0:00:13]} b2 {[%emt 0:00:09]} 60. Rb1 {[%emt 0:00:09]} Ke5 {[%emt 0:00:08]} 61. Ke3 {[%emt 0:00:49]} h5 {[%emt 0:01:40]} 62. Kf3 {[%emt 0:00:12]} Rb3+ {[%emt 0:00:27]} 63. Kg2 {[%emt 0:00:09]} Rb6 {[%emt 0:00:38]} 64. Kg3 {[%emt 0:00:35]} Rb4 {[%emt 0:00:24]} 65. Kh3 {[%emt 0:00:39]} Kf6 {[%emt 0:00:38]} 66. Kg3 {[%emt 0:00:23]} Kg5 {[%emt 0:00:27]} 67. Kh2 {[%emt 0:00:21]} Rb3 {[%emt 0:00:29]} 68. Rg1+ {[%emt 0:00:37]} Kf4 {[%emt 0:00:34]} 69. Rb1 {[%emt 0:00:02]} Ke5 {[%emt 0:00:26]} 70. Kg2 {[%emt 0:00:01]} Rb8 {[%emt 0:00:26]} 71. Kf3 {[%emt 0:00:45]} Kd4 {[%emt 0:00:36]} 72. Kf4 {[%emt 0:02:04]} Kc3 {[%emt 0:00:32]} 73. e5 {[%emt 0:00:17]} Kd4 {[%emt 0:00:31]} 74. f6 {[%emt 0:00:13]} Kd5 {[%emt 0:00:19]} 75. Kf5 {[%emt 0:00:09]} h4 {[%emt 0:00:38]} 76. e6 {[%emt 0:00:46]} Kd6 {[%emt 0:00:32]} 77. Rd1+ {[%emt 0:00:05]} Kc7 {[%emt 0:00:31]} 78. e7 {[%emt 0:00:08]} 1-0

[Event "African-ch Open 2019"]
[Site "Hammamet"]
[Date "2019.07.13"]
[Round "5.5"]
[White "Rakotomaharo, Fy Antenaina"]
[Black "Solomon, Kenny"]
[Result "1/2-1/2"]
[ECO "B51"]
[WhiteElo "2419"]
[BlackElo "2375"]
[Annotator "NA"]
[PlyCount "126"]
[EventDate "2019.07.09"]
[EventType "swiss"]
[EventCountry "TUN"]
[SourceTitle "playchess.com"]
[Source "ChessBase"]
[SourceQuality "1"]
[TimeControl "5400+30"]

1. e4 {[%emt 0:00:06]} c5 {[%emt 0:00:49]} 2. Nf3 {[%emt 0:00:20]} d6 {[%emt 0:00:00]} 3. Bb5+ {[%emt 0:00:23]} Nd7 {[%emt 0:00:00]} 4. c3 {[%emt 0:00:05]} Ngf6 {[%emt 0:00:00]} 5. Bd3 {[%emt 0:00:05]} g6 {[%emt 0:05:27]} 6. Bc2 {[%emt 0:00:14]} Bg7 {[%emt 0:00:18]} 7. d4 {[%emt 0:00:13]} O-O {[%emt 0:01:01]} 8. O-O {[%emt 0:00:12]} b6 {[%emt 0:21:33]} 9. Re1 {[%emt 0:15:59]} Bb7 {[%emt 0:02:43]} 10. Bg5 {[%emt 0:00:37]} h6 {[%emt 0:04:33]} 11. Bh4 {[%emt 0:00:31]} e5 {[%emt 0:09:48]} 12. Na3 {[%emt 0:04:18]} exd4 {[%emt 0:15:47]} 13. cxd4 {[%emt 0:00:20]} cxd4 {[%emt 0:00:07]} 14. Nxd4 {[%emt 0:04:27]} a6 {[%emt 0:00:31]} 15. Nb1 {[%emt 0:16:54]} Re8 {[%emt 0:02:38]} 16. Nc3 {[%emt 0:00:46]} b5 {[%emt 0:01:11]} 17. Qd2 {[%emt 0:06:17]} Qb6 {[%emt 0:04:08]} 18. Rad1 {[%emt 0:02:41]} Rac8 {[%emt 0:04:27]} 19. f3 {[%emt 0:03:56]} Ne5 {[%emt 0:02:57]} 20. Bf2 {[%emt 0:01:32]} Nc4 {[%emt 0:01:02]} 21. Qc1 {[%emt 0:07:48]} Qc7 {[%emt 0:00:02]} 22. Nce2 {[%emt 0:10:04]} d5 {[%emt 0:03:11]} 23. b3 {[%emt 0:00:44]} Ne5 {[%emt 0:07:02]} 24. f4 {[%emt 0:04:26]} Neg4 {[%emt 0:00:12]} 25. e5 {[%emt 0:00:03]} Ne4 {[%emt 0:05:49]} 26. Bxe4 {[%emt 0:08:38]} dxe4 {[%emt 0:00:03]} 27. Qxc7 {[%emt 0:00:12]} Rxc7 {[%emt 0:00:02]} 28. Ng3 {[%emt 0:00:50]} e3 {[%emt 0:03:14]} 29. Bxe3 {[%emt 0:00:34]} Nxe3 {[%emt 0:00:07]} 30. Rxe3 {[%emt 0:00:06]} Rd7 {[%emt 0:00:02]} 31. Red3 {[%emt 0:03:31]} Red8 {[%emt 0:00:12]} 32. Kf2 {[%emt 0:00:28]} Bf8 {[%emt 0:03:06]} 33. Ke3 {[%emt 0:02:49]} Bxg2 {[%emt 0:00:33]} 34. Ne4 {[%emt 0:00:08]} Bxe4 {[%emt 0:01:48]} 35. Kxe4 {[%emt 0:00:02]} f5+ {[%emt 0:01:16]} 36. exf6 {[%emt 0:00:08]} Re8+ {[%emt 0:01:08]} 37. Kf3 {[%emt 0:00:05]} Rd6 {[%emt 0:00:34]} 38. Ne2 {[%emt 0:04:08]} Rxf6 {[%emt 0:00:02]} 39. Ng3 {[%emt 0:00:05]} h5 {[%emt 0:00:40]} 40. Rd8 {[%emt 0:00:00]} Rxd8 {[%emt 0:00:00]} 41. Rxd8 {[%emt 0:00:00]} Rc6 {[%emt 0:00:00]} 42. Ne4 {[%emt 0:00:00]} Kf7 {[%emt 0:00:00]} 43. Ng5+ {[%emt 0:00:00]} Ke7 {[%emt 0:00:00]} 44. Ra8 {[%emt 0:00:00]} Bh6 {[%emt 0:00:00]} 45. Ra7+ {[%emt 0:00:00]} Ke8 {[%emt 0:00:00]} 46. h4 {[%emt 0:00:00]} Bf8 {[%emt 0:00:00]} 47. Ra8+ {[%emt 0:00:00]} Ke7 {[%emt 0:00:00]} 48. Ke4 {[%emt 0:00:00]} b4 {[%emt 0:00:00]} 49. Nf3 {[%emt 0:00:00]} Bh6 {[%emt 0:00:00]} 50. Ra7+ {[%emt 0:00:00]} Ke8 {[%emt 0:00:00]} 51. Rh7 {[%emt 0:00:00]} Bf8 {[%emt 0:00:00]} 52. Ne5 {[%emt 0:00:00]} Rf6 {[%emt 0:00:39]} 53. Rh8 {[%emt 0:00:00]} Rd6 {[%emt 0:01:27]} 54. Rg8 {[%emt 0:00:00]} Rd2 {[%emt 0:00:30]} 55. Nxg6 {[%emt 0:04:25]} Kf7 {[%emt 0:00:41]} 56. Rxf8+ {[%emt 0:00:04]} Kxg6 {[%emt 0:00:05]} 57. Rb8 {[%emt 0:01:41]} Re2+ {[%emt 0:01:49]} 58. Kf3 {[%emt 0:00:37]} Rxa2 {[%emt 0:00:06]} 59. Rxb4 {[%emt 0:00:09]} Rb2 {[%emt 0:02:47]} 60. Ke4 {[%emt 0:03:50]} Re2+ {[%emt 0:00:01]} 61. Kd3 {[%emt 0:00:09]} Rh2 {[%emt 0:01:38]} 62. Rb6+ {[%emt 0:01:43]} Kf5 {[%emt 0:00:00]} 63. Rxa6 {[%emt 0:00:06]} Rh3+ {[%emt 0:00:13] Ke4+ Ke5+} 1/2-1/2

[Event "African-ch Open 2019"]
[Site "Hammamet"]
[Date "2019.07.14"]
[Round "6.2"]
[White "Adly, Ahmed"]
[Black "Arab, Adlane"]
[Result "1-0"]
[ECO "A46"]
[WhiteElo "2618"]
[BlackElo "2479"]
[Annotator "ChessBase"]
[PlyCount "77"]
[EventDate "2019.07.09"]
[EventType "swiss"]
[EventCountry "TUN"]
[SourceTitle "playchess.com"]
[Source "ChessBase"]
[SourceQuality "1"]
[TimeControl "5400+30"]

1. d4 {[%emt 0:00:00]} d5 {[%emt 0:00:00]} 2. g3 {[%emt 0:00:00]} Nf6 {[%emt 0:00:20]} 3. Bg2 {[%emt 0:00:00]} e6 {[%emt 0:01:02]} 4. Nf3 {[%emt 0:00:02]} Be7 {[%emt 0:00:06]} 5. O-O {[%emt 0:00:05]} b5 {[%emt 0:00:58]} 6. a4 {[%emt 0:00:09]} b4 {[%emt 0:00:06]} 7. c4 {[%emt 0:00:06]} bxc3 {[%emt 0:00:20]} 8. Nxc3 {[%emt 0:00:03]} O-O {[%emt 0:00:55]} 9. Ne5 {[%emt 0:00:05]} Nfd7 {[%emt 0:02:49]} 10. e4 {[%emt 0:00:02]} Nxe5 {[%emt 0:01:31]} 11. exd5 {[%emt 0:00:03]} Ba6 {[%emt 0:08:22]} 12. d6 {[%emt 0:01:44]} cxd6 {[%emt 0:01:33]} 13. Bxa8 {[%emt 0:00:28]} Bxf1 {[%emt 0:00:12]} 14. Qxf1 {[%emt 0:10:22]} Nbc6 {[%emt 0:04:52]} 15. Bxc6 {[%emt 0:00:52]} Nxc6 {[%emt 0:00:06]} 16. d5 {[%emt 0:00:04]} Nb4 {[%emt 0:07:26]} 17. Qc4 {[%emt 0:10:00]} Nxd5 {[%emt 0:00:39]} 18. Nxd5 {[%emt 0:00:02]} exd5 {[%emt 0:00:07]} 19. Qxd5 {[%emt 0:00:03]} Qa8 {[%emt 0:05:45]} 20. Qxa8 {[%emt 0:03:17]} Rxa8 {[%emt 0:00:07]} 21. Be3 {[%emt 0:00:04]} Bf6 {[%emt 0:06:13]} 22. Rd1 {[%emt 0:00:17]} Bxb2 {[%emt 0:01:00]} 23. Rxd6 {[%emt 0:00:04]} a5 {[%emt 0:04:24]} 24. Bd2 {[%emt 0:00:12]} Bf6 {[%emt 0:00:10]} 25. Kf1 {[%emt 0:04:00]} Kf8 {[%emt 0:00:07]} 26. Rb6 {[%emt 0:00:16]} Ke8 {[%emt 0:02:23]} 27. Rb5 {[%emt 0:00:16]} Bd8 {[%emt 0:00:06]} 28. Ke2 {[%emt 0:00:39]} Ra6 {[%emt 0:02:10]} 29. Rd5 {[%emt 0:01:54]} Bc7 {[%emt 0:04:22]} 30. Kd3 {[%emt 0:05:40]} Ke7 {[%emt 0:03:22]} 31. Kc4 {[%emt 0:01:50]} Rc6+ {[%emt 0:04:16]} 32. Kb5 {[%emt 0:00:21]} Rb6+ {[%emt 0:00:06]} 33. Kc5 {[%emt 0:00:23]} Ra6 {[%emt 0:03:58]} 34. Be3 {[%emt 0:08:26]} Bd8 {[%emt 0:04:41]} 35. Kb5 {[%emt 0:05:20]} Re6 {[%emt 0:03:59]} 36. Bg5+ {[%emt 0:00:58]} f6 {[%emt 0:00:12]} 37. Be3 {[%emt 0:00:03]} g6 {[%emt 0:03:20]} 38. Bc5+ {[%emt 0:00:53]} Ke8 {[%emt 0:00:05]} 39. Rd3 {[%emt 0:00:02]} 1-0

[Event "African-ch Open 2019"]
[Site "Hammamet"]
[Date "2019.07.14"]
[Round "6.3"]
[White "Bellahcene, Bilel"]
[Black "Oussedik, Mahfoud"]
[Result "1-0"]
[ECO "B90"]
[WhiteElo "2541"]
[BlackElo "2440"]
[Annotator "ChessBase"]
[PlyCount "95"]
[EventDate "2019.07.09"]
[EventType "swiss"]
[EventCountry "TUN"]
[SourceTitle "playchess.com"]
[Source "ChessBase"]
[SourceQuality "1"]
[TimeControl "5400+30"]

1. e4 {[%emt 0:01:41]} c5 {[%emt 0:00:20]} 2. Nf3 {[%emt 0:00:03]} d6 {[%emt 0:01:32]} 3. d4 {[%emt 0:00:06]} cxd4 {[%emt 0:00:03]} 4. Nxd4 {[%emt 0:00:03]} Nf6 {[%emt 0:00:04]} 5. Nc3 {[%emt 0:00:03]} a6 {[%emt 0:00:02]} 6. h4 {[%emt 0:00:03]} Nc6 {[%emt 0:00:04]} 7. Bg5 {[%emt 0:00:22]} Qb6 {[%emt 0:10:34]} 8. Nb3 {[%emt 0:00:26]} e6 {[%emt 0:01:39]} 9. Be3 {[%emt 0:07:27]} Qc7 {[%emt 0:00:14]} 10. g4 {[%emt 0:00:22]} h6 {[%emt 0:02:15]} 11. Bg2 {[%emt 0:05:09]} Ne5 {[%emt 0:02:40]} 12. g5 {[%emt 0:00:29]} hxg5 {[%emt 0:08:25]} 13. hxg5 {[%emt 0:00:11]} Rxh1+ {[%emt 0:00:05]} 14. Bxh1 {[%emt 0:00:01]} Nfd7 {[%emt 0:02:38]} 15. Nd2 {[%emt 0:05:10]} Nb6 {[%emt 0:00:49]} 16. Qe2 {[%emt 0:03:00]} Nbc4 {[%emt 0:04:45]} 17. O-O-O {[%emt 0:03:18]} Nxd2 {[%emt 0:08:15]} 18. Bxd2 {[%emt 0:00:42]} b5 {[%emt 0:00:06]} 19. f4 {[%emt 0:00:40]} Nc4 {[%emt 0:03:38]} 20. f5 {[%emt 0:00:59]} b4 {[%emt 0:05:32]} 21. Nb1 {[%emt 0:01:18]} Rb8 {[%emt 0:01:57]} 22. Bf4 {[%emt 0:05:53]} e5 {[%emt 0:03:50]} 23. Bg3 {[%emt 0:07:58]} Be7 {[%emt 0:04:22]} 24. Bh4 {[%emt 0:04:48]} Bd7 {[%emt 0:00:16]} 25. Qh5 {[%emt 0:08:04]} Rc8 {[%emt 0:19:17]} 26. g6 {[%emt 0:02:34]} f6 {[%emt 0:01:35]} 27. Qh8+ {[%emt 0:00:45]} Bf8 {[%emt 0:00:06]} 28. Qg8 {[%emt 0:00:16]} Bb5 {[%emt 0:00:32]} 29. c3 {[%emt 0:02:38]} Nb6 {[%emt 0:07:31]} 30. Qe6+ {[%emt 0:03:52]} Kd8 {[%emt 0:00:07]} 31. Qxe5 {[%emt 0:12:30]} Be7 {[%emt 0:03:14]} 32. Qd4 {[%emt 0:02:17]} bxc3 {[%emt 0:00:49]} 33. Nxc3 {[%emt 0:00:11]} Na4 {[%emt 0:02:20]} 34. Be1 {[%emt 0:00:20]} Qa5 {[%emt 0:01:55]} 35. Kb1 {[%emt 0:00:39]} Bc4 {[%emt 0:01:26]} 36. Nxa4 {[%emt 0:01:52]} Qxa4 {[%emt 0:00:16]} 37. b3 {[%emt 0:00:35]} Rb8 {[%emt 0:01:23]} 38. Bc3 {[%emt 0:04:44]} Qb5 {[%emt 0:03:51]} 39. Bb2 {[%emt 0:00:24]} Bg8 {[%emt 0:00:04]} 40. Bf3 {[%emt 0:00:00]} a5 {[%emt 0:00:00]} 41. Qd3 {[%emt 0:00:00]} Kd7 {[%emt 0:00:00]} 42. Qxb5+ {[%emt 0:00:00]} Rxb5 {[%emt 0:00:00]} 43. Be2 {[%emt 0:00:00]} Rb4 {[%emt 0:00:00]} 44. Bd3 {[%emt 0:00:00]} Bd8 {[%emt 0:00:00]} 45. Rh1 {[%emt 0:00:00]} d5 {[%emt 0:00:00]} 46. e5 {[%emt 0:00:00]} fxe5 {[%emt 0:00:00]} 47. Bc3 {[%emt 0:00:00]} Rg4 {[%emt 0:00:00]} 48. Bxe5 {[%emt 0:00:00]} 1-0

[Event "African-ch Open 2019"]
[Site "Hammamet"]
[Date "2019.07.14"]
[Round "6.4"]
[White "Munenga, Douglas D"]
[Black "Rakotomaharo, Fy Antenaina"]
[Result "0-1"]
[ECO "C76"]
[WhiteElo "2329"]
[BlackElo "2419"]
[Annotator "ChessBase"]
[PlyCount "134"]
[EventDate "2019.07.09"]
[EventType "swiss"]
[EventCountry "TUN"]
[SourceTitle "playchess.com"]
[Source "ChessBase"]
[SourceQuality "1"]
[TimeControl "5400+30"]

1. e4 {[%emt 0:00:01]} e5 {[%emt 0:00:00]} 2. Nf3 {[%emt 0:01:52]} Nc6 {[%emt 0:00:00]} 3. Bb5 {[%emt 0:00:11]} a6 {[%emt 0:00:00]} 4. Ba4 {[%emt 0:00:10]} d6 {[%emt 0:00:00]} 5. c3 {[%emt 0:06:48]} Bd7 {[%emt 0:00:00]} 6. d4 {[%emt 0:00:52]} g6 {[%emt 0:00:15]} 7. Bg5 {[%emt 0:00:24]} f6 {[%emt 0:00:50]} 8. Be3 {[%emt 0:00:32]} Nh6 {[%emt 0:00:09]} 9. h3 {[%emt 0:01:19]} Nf7 {[%emt 0:00:42]} 10. d5 {[%emt 0:11:17]} Ne7 {[%emt 0:00:21]} 11. Bxd7+ {[%emt 0:00:06]} Qxd7 {[%emt 0:00:05]} 12. c4 {[%emt 0:00:13]} Bg7 {[%emt 0:06:57]} 13. Nc3 {[%emt 0:00:09]} O-O {[%emt 0:00:18]} 14. Qd3 {[%emt 0:06:07]} f5 {[%emt 0:19:31]} 15. Bg5 {[%emt 0:11:19]} Nc8 {[%emt 0:08:53]} 16. Bd2 {[%emt 0:01:42]} c5 {[%emt 0:03:01]} 17. dxc6 {[%emt 0:02:25]} bxc6 {[%emt 0:00:06]} 18. Rd1 {[%emt 0:00:52]} fxe4 {[%emt 0:20:39]} 19. Qxe4 {[%emt 0:00:56]} Ne7 {[%emt 0:00:49]} 20. Bc1 {[%emt 0:06:41]} Rad8 {[%emt 0:01:05]} 21. O-O {[%emt 0:00:41]} d5 {[%emt 0:01:44]} 22. cxd5 {[%emt 0:10:53]} cxd5 {[%emt 0:00:06]} 23. Qb4 {[%emt 0:00:50]} h6 {[%emt 0:12:44]} 24. Rfe1 {[%emt 0:08:44]} Rfe8 {[%emt 0:00:16]} 25. Qh4 {[%emt 0:10:39]} Qc6 {[%emt 0:03:44]} 26. Qa4 {[%emt 0:04:22]} Qxa4 {[%emt 0:05:49]} 27. Nxa4 {[%emt 0:00:03]} Nc6 {[%emt 0:00:06]} 28. Nc3 {[%emt 0:00:46]} e4 {[%emt 0:05:33]} 29. Nh2 {[%emt 0:00:55]} Nb4 {[%emt 0:01:24]} 30. Na4 {[%emt 0:03:57]} Nd3 {[%emt 0:00:39]} 31. Re2 {[%emt 0:00:09]} Rc8 {[%emt 0:01:06]} 32. Bd2 {[%emt 0:02:12]} Rc2 {[%emt 0:00:26]} 33. Kf1 {[%emt 0:00:22]} Bxb2 {[%emt 0:04:20]} 34. f3 {[%emt 0:02:15]} Bg7 {[%emt 0:02:16]} 35. fxe4 {[%emt 0:00:33]} dxe4 {[%emt 0:00:16]} 36. Be3 {[%emt 0:00:53]} Rec8 {[%emt 0:00:19]} 37. Ng4 {[%emt 0:01:24]} h5 {[%emt 0:02:42]} 38. Nf2 {[%emt 0:00:26]} Nxf2 {[%emt 0:00:17]} 39. Rxf2 {[%emt 0:00:26]} Ne5 {[%emt 0:00:28]} 40. Rxc2 {[%emt 0:00:00]} Rxc2 {[%emt 0:00:00]} 41. Nc5 {[%emt 0:00:00]} Rxa2 {[%emt 0:00:00]} 42. Nxe4 {[%emt 0:00:00]} Nf7 {[%emt 0:00:00]} 43. Rd7 {[%emt 0:00:00]} a5 {[%emt 0:00:00]} 44. Bd4 {[%emt 0:00:00]} Bxd4 {[%emt 0:00:00]} 45. Rxd4 {[%emt 0:00:00]} Ne5 {[%emt 0:00:00]} 46. Rd5 {[%emt 0:00:00]} Nf7 {[%emt 0:00:00]} 47. Ng5 {[%emt 0:00:00]} h4 {[%emt 0:00:00]} 48. Nxf7 Kxf7 {[%emt 0:00:00]} 49. Rd4 {[%emt 0:00:00]} g5 {[%emt 0:00:00]} 50. Rd5 {[%emt 0:00:00]} Kf6 {[%emt 0:00:00]} 51. Rb5 {[%emt 0:00:00]} a4 {[%emt 0:01:27]} 52. Ra5 {[%emt 0:00:00]} a3 {[%emt 0:00:10]} 53. Kg1 {[%emt 0:00:00]} Ke6 {[%emt 0:00:20]} 54. Kf1 {[%emt 0:03:21]} Kd6 {[%emt 0:00:39]} 55. Kg1 {[%emt 0:00:17]} Kc6 {[%emt 0:00:14]} 56. Kf1 {[%emt 0:00:12]} Kb6 {[%emt 0:00:27]} 57. Ra8 {[%emt 0:00:07]} Kc5 {[%emt 0:02:55]} 58. Rc8+ {[%emt 0:03:04]} Kb4 {[%emt 0:00:07]} 59. Rb8+ {[%emt 0:01:24]} Kc3 {[%emt 0:00:05]} 60. Rc8+ {[%emt 0:01:57]} Kb3 {[%emt 0:00:25]} 61. Rb8+ {[%emt 0:00:07]} Kc2 {[%emt 0:00:04]} 62. Rc8+ {[%emt 0:00:20]} Kb1 {[%emt 0:00:39]} 63. Ra8 {[%emt 0:00:10]} Ra1 {[%emt 0:00:06]} 64. Kf2 {[%emt 0:00:49]} Ka2 {[%emt 0:00:22]} 65. g3 {[%emt 0:04:18]} Rc1 {[%emt 0:02:40]} 66. gxh4 {[%emt 0:01:19]} gxh4 {[%emt 0:00:01]} 67. Kf3 {[%emt 0:00:09]} Rg1 {[%emt 0:00:04]} 0-1

[Event "African-ch Open 2019"]
[Site "Hammamet"]
[Date "2019.07.14"]
[Round "6.5"]
[White "Douissa, Oussama"]
[Black "Hamdouchi, Hicham"]
[Result "1/2-1/2"]
[ECO "D76"]
[WhiteElo "2248"]
[BlackElo "2575"]
[Annotator "ChessBase"]
[PlyCount "111"]
[EventDate "2019.07.09"]
[EventType "swiss"]
[EventCountry "TUN"]
[SourceTitle "playchess.com"]
[Source "ChessBase"]
[SourceQuality "1"]
[TimeControl "5400+30"]

1. d4 {[%emt 0:00:00]} Nf6 {[%emt 0:00:00]} 2. Nf3 {[%emt 0:00:12]} g6 {[%emt 0:00:09]} 3. g3 {[%emt 0:00:29]} Bg7 {[%emt 0:00:18]} 4. Bg2 {[%emt 0:00:24]} O-O {[%emt 0:01:08]} 5. O-O {[%emt 0:00:17]} d5 {[%emt 0:00:49]} 6. c4 {[%emt 0:04:29]} Nc6 {[%emt 0:00:46]} 7. cxd5 {[%emt 0:05:20]} Nxd5 {[%emt 0:00:17]} 8. Nc3 {[%emt 0:00:55]} Nb6 {[%emt 0:00:38]} 9. d5 {[%emt 0:03:49]} Na5 {[%emt 0:00:29]} 10. Nd4 {[%emt 0:03:10]} c6 {[%emt 0:12:26]} 11. Nb3 {[%emt 0:11:01]} Nxd5 {[%emt 0:03:09]} 12. Nxd5 {[%emt 0:02:31]} cxd5 {[%emt 0:00:05]} 13. Nxa5 {[%emt 0:03:30]} Qxa5 {[%emt 0:00:57]} 14. Qxd5 {[%emt 0:00:11]} Qa6 {[%emt 0:25:22]} 15. Bf3 {[%emt 0:10:44]} Be6 {[%emt 0:10:22]} 16. Qxb7 {[%emt 0:02:00]} Qxb7 {[%emt 0:00:06]} 17. Bxb7 {[%emt 0:00:07]} Rab8 {[%emt 0:00:03]} 18. Bf3 {[%emt 0:01:15]} a5 {[%emt 0:05:46]} 19. a4 {[%emt 0:12:10]} Rfc8 {[%emt 0:01:24]} 20. Bd2 {[%emt 0:04:53]} Bxb2 {[%emt 0:01:17]} 21. Rab1 {[%emt 0:01:56]} Ba2 {[%emt 0:01:17]} 22. Rbe1 {[%emt 0:03:07]} Rc5 {[%emt 0:01:06]} 23. e4 {[%emt 0:05:29]} Rd8 {[%emt 0:13:46]} 24. Be3 {[%emt 0:00:53]} Bd4 {[%emt 0:01:09]} 25. Ra1 {[%emt 0:05:46]} Bb3 {[%emt 0:05:44]} 26. Ra3 {[%emt 0:04:15]} Bc2 {[%emt 0:03:16]} 27. Bxd4 {[%emt 0:03:41]} Rxd4 {[%emt 0:00:02]} 28. Rc1 {[%emt 0:00:24]} e5 {[%emt 0:03:23]} 29. Be2 {[%emt 0:03:07]} Rd2 {[%emt 0:02:51]} 30. Kf1 {[%emt 0:00:49]} Rd7 {[%emt 0:00:51]} 31. Ke1 {[%emt 0:01:42]} Rdc7 {[%emt 0:00:05]} 32. f3 {[%emt 0:00:31]} f5 {[%emt 0:00:49]} 33. exf5 {[%emt 0:00:28]} gxf5 {[%emt 0:00:30]} 34. Bd3 {[%emt 0:03:02]} Kf7 {[%emt 0:02:20]} 35. Kd2 {[%emt 0:01:26]} Bxd3 {[%emt 0:00:07]} 36. Rxc5 {[%emt 0:00:06]} Rxc5 {[%emt 0:00:03]} 37. Kxd3 {[%emt 0:00:43]} Ke6 {[%emt 0:01:04]} 38. Rb3 {[%emt 0:00:22]} Kd5 {[%emt 0:00:54]} 39. Rb7 {[%emt 0:00:21]} e4+ {[%emt 0:00:10]} 40. fxe4+ {[%emt 0:00:00]} fxe4+ {[%emt 0:00:00]} 41. Ke3 {[%emt 0:00:00]} Rc3+ {[%emt 0:00:00]} 42. Ke2 {[%emt 0:00:00]} Ra3 {[%emt 0:00:00]} 43. Rxh7 {[%emt 0:00:00]} Rxa4 {[%emt 0:00:00]} 44. Rd7+ {[%emt 0:00:00]} Ke6 {[%emt 0:00:00]} 45. Ra7 {[%emt 0:00:00]} Ra3 {[%emt 0:00:00]} 46. h4 {[%emt 0:00:00]} a4 {[%emt 0:00:00]} 47. h5 {[%emt 0:00:00]} Kf5 {[%emt 0:00:00]} 48. Rg7 {[%emt 0:00:00]} Ra1 {[%emt 0:00:00]} 49. h6 {[%emt 0:00:00]} Rh1 {[%emt 0:00:00]} 50. Ra7 {[%emt 0:00:00]} Rxh6 {[%emt 0:00:00]} 51. Rxa4 {[%emt 0:01:29]} Rb6 {[%emt 0:00:00]} 52. Ra5+ {[%emt 0:00:31]} Kg4 {[%emt 0:00:00]} 53. Ke3 {[%emt 0:00:20]} Re6 {[%emt 0:00:00]} 54. Ra4 {[%emt 0:00:17]} Kxg3 {[%emt 0:00:00]} 55. Rxe4 {[%emt 0:00:07]} Rxe4+ {[%emt 0:00:00]} 56. Kxe4 {[%emt 0:00:01]} 1/2-1/2